bitfinex/quotes_BTCUSD_20241023
["timestamp","ask_amount","ask_price","bid_price","bid_amount"]
[1729720837603,0.001706,66437.0,66436.0,0.71853211]
[1729720837968,0.001706,66437.0,66436.0,0.72053211]
[1729720838086,0.001706,66437.0,66436.0,0.71853211]
[1729720841461,0.001706,66437.0,66436.0,0.72053211]
[1729720841680,0.001706,66437.0,66436.0,0.71853211]
[1729720842269,0.001706,66437.0,66436.0,0.72053211]
[1729720842587,0.001706,66437.0,66436.0,0.73053211]
[1729720842811,0.001706,66437.0,66436.0,0.72853211]
[1729720843217,0.001706,66437.0,66436.0,0.72853161]
[1729720843421,0.001706,66437.0,66436.0,0.72853887]
[1729720843683,0.001706,66448.0,66444.0,0.340102]
[1729720843882,0.001706,66448.0,66444.0,0.35105714]
[1729720844081,0.001706,66448.0,66444.0,0.50156095]
[1729720844296,0.001706,66448.0,66444.0,0.49656095]
[1729720844624,0.001706,66448.0,66444.0,0.49856095]
[1729720845042,0.001706,66448.0,66444.0,0.49656095]
[1729720846779,0.001706,66448.0,66444.0,0.49655262]
[1729720846940,0.001706,66448.0,66444.0,0.4853118]
[1729720847141,0.001706,66448.0,66444.0,0.4965523]
[1729720847604,0.001706,66448.0,66444.0,0.4853118]
[1729720848006,0.001706,66448.0,66444.0,0.48531168]
[1729720848240,0.001706,66448.0,66444.0,0.49001755]
[1729720848412,0.001706,66448.0,66444.0,0.48531168]
[1729720848860,0.001706,66448.0,66444.0,0.48913629]
[1729720849077,0.001706,66448.0,66444.0,0.60011625]
[1729720849315,0.001706,66448.0,66444.0,0.60211625]
[1729720851175,0.001706,66448.0,66444.0,0.71211625]
[1729720851397,0.001706,66448.0,66444.0,0.71011618]
[1729720851856,0.001706,66448.0,66444.0,0.71211618]
[1729720854029,0.001706,66448.0,66444.0,0.71011618]
[1729720854461,0.001706,66448.0,66444.0,0.71211618]
[1729720854589,0.001706,66448.0,66444.0,0.71011618]
[1729720854792,0.001706,66448.0,66444.0,0.70741038]
[1729720854992,0.001706,66448.0,66444.0,0.71211605]
[1729720855646,0.001706,66448.0,66444.0,0.71011605]
[1729720856231,0.001706,66448.0,66444.0,0.71211605]
[1729720856852,0.001706,66448.0,66444.0,0.72626405]
[1729720857680,0.001706,66448.0,66444.0,0.72426405]
[1729720857847,0.001706,66448.0,66444.0,0.72626405]
[1729720858023,0.001706,66448.0,66444.0,0.72426405]
[1729720860574,0.001706,66448.0,66444.0,0.72508705]
[1729720861211,0.001706,66448.0,66444.0,0.72038138]
[1729720861556,0.001706,66448.0,66444.0,0.72708705]
[1729720862315,0.001706,66448.0,66444.0,0.72508705]
[1729720862473,0.001706,66448.0,66444.0,0.72708705]
[1729720862887,0.001706,66448.0,66445.0,0.4389]
[1729720863109,0.001706,66448.0,66445.0,0.59410948]
[1729720863714,0.001706,66448.0,66447.0,0.155495]
[1729720863936,0.001706,66457.0,66456.0,0.249275]
[1729720864116,0.001706,66457.0,66456.0,0.6264444]
[1729720864944,0.001706,66457.0,66456.0,0.62173873]
[1729720865151,0.001706,66457.0,66456.0,0.62644421]
[1729720866570,0.00152486,66457.0,66456.0,0.62644421]
[1729720868225,0.00152486,66457.0,66456.0,1.15105504]
[1729720868427,0.00152486,66457.0,66456.0,0.92509868]
[1729720868537,0.00152486,66457.0,66456.0,0.9203932]
[1729720868741,0.00152486,66457.0,66456.0,0.92509776]
[1729720869002,0.00152486,66457.0,66456.0,0.9203932]
[1729720869216,0.00152486,66457.0,66456.0,0.9250979]
[1729720870922,0.00152486,66457.0,66456.0,0.92509789]
[1729720874510,0.00152486,66457.0,66456.0,1.16105425]
[1729720874756,0.3516354,66458.0,66457.0,0.257473]
[1729720874996,0.3516354,66458.0,66457.0,0.5910815]
[1729720875227,0.3516354,66458.0,66457.0,0.6010815]
[1729720876436,0.3516354,66458.0,66457.0,0.59637681]
[1729720876700,0.3516354,66458.0,66457.0,0.60108129]
[1729720877180,0.001706,66467.0,66466.0,0.335852]
[1729720877433,0.001706,66467.0,66466.0,0.70204025]
[1729720877665,0.001706,66467.0,66466.0,0.81302021]
[1729720877914,0.001706,66467.0,66466.0,0.8130202]
[1729720878652,0.001706,66467.0,66466.0,0.8190372]
[1729720880349,0.001706,66467.0,66466.0,0.93001716]
[1729720880620,0.001706,66467.0,66466.0,0.81903692]
[1729720881374,0.001706,66467.0,66466.0,0.82903692]
[1729720881858,0.001706,66467.0,66466.0,0.81903692]
[1729720882105,0.001706,66467.0,66466.0,0.82903692]
[1729720883003,0.001706,66467.0,66466.0,0.82296725]
[1729720883547,0.001706,66467.0,66466.0,0.83296725]
[1729720883903,0.001706,66467.0,66466.0,0.83296683]
[1729720884107,0.001706,66467.0,66466.0,0.94394679]
[1729720884989,0.001706,66467.0,66466.0,0.83296683]
[1729720885980,0.001706,66467.0,66466.0,0.83096683]
[1729720886185,0.001706,66467.0,66466.0,0.83296683]
[1729720886600,0.001706,66467.0,66466.0,0.83096683]
[1729720887338,0.001706,66467.0,66466.0,0.83296683]
[1729720887547,0.001706,66467.0,66466.0,0.82626306]
[1729720887754,0.001706,66467.0,66466.0,0.83296666]
[1729720899497,0.001706,66467.0,66466.0,0.87982764]
[1729720902312,0.001706,66467.0,66466.0,0.87512404]
[1729720902555,0.001706,66467.0,66466.0,0.87982777]
[1729720904177,1e-06,66467.0,66466.0,0.87982777]
[1729720905556,1e-06,66468.0,66467.0,0.25745]
[1729720905829,1e-06,66470.0,66469.0,0.352946]
[1729720906057,1e-06,66470.0,66469.0,0.66599448]
[1729720906274,1e-06,66470.0,66469.0,0.85297444]
[1729720906530,0.137304,66472.0,66471.0,0.352941]
[1729720906743,0.137304,66472.0,66471.0,0.54881887]
[1729720907186,0.137304,66472.0,66471.0,0.50814854]
[1729720907651,0.137304,66472.0,66471.0,0.55507605]
[1729720907864,0.137304,66472.0,66471.0,0.66605601]
[1729720908126,0.137304,66472.0,66471.0,0.55507605]
[1729720908351,0.137304,66472.0,66471.0,0.77703563]
[1729720909013,0.137304,66472.0,66471.0,0.78703563]
[1729720909736,0.138127,66472.0,66471.0,0.78703563]
[1729720909971,0.138127,66472.0,66471.0,0.78233224]
[1729720910202,0.138127,66472.0,66471.0,0.78703558]
[1729720911532,0.138127,66472.0,66471.0,0.77703558]
[1729720911906,0.138127,66472.0,66471.0,0.78703558]
[1729720912461,0.138127,66472.0,66471.0,0.83198872]
[1729720912679,0.138127,66472.0,66471.0,0.82198872]
[1729720912870,0.138127,66472.0,66471.0,0.83198872]
[1729720913277,0.138127,66472.0,66471.0,0.82198872]
[1729720914508,0.138127,66472.0,66471.0,0.77703558]
[1729720917409,0.138127,66472.0,66471.0,0.66605562]
[1729720919561,0.138127,66472.0,66471.0,0.75611528]
[1729720920574,0.138127,66472.0,66471.0,0.66605562]
[1729720920903,0.138127,66472.0,66471.0,0.77870525]
[1729720921306,0.138127,66472.0,66471.0,0.66605562]
[1729720922509,0.138127,66472.0,66471.0,0.77870525]
[1729720923748,0.138127,66472.0,66471.0,0.77870522]
[1729720924487,0.138127,66472.0,66471.0,0.66605559]
[1729720927582,0.138127,66472.0,66471.0,0.66605547]
[1729720928433,0.047863,66472.0,66471.0,1.00474593]
[1729720928603,0.0125,66483.0,66482.0,0.257416]
[1729720928807,0.0125,66483.0,66482.0,0.63258292]
[1729720929284,0.0125,66483.0,66482.0,0.63458292]
[1729720930264,0.0125,66483.0,66482.0,0.63258292]
[1729720932264,0.0125,66483.0,66482.0,0.67967621]
[1729720933394,0.0125,66483.0,66482.0,0.68364278]
[1729720933592,0.0966,66491.0,66490.0,0.005]
[1729720933868,0.0966,66491.0,66490.0,0.42158496]
[1729720935630,0.005,66499.0,66496.0,0.155384]
[1729720935827,0.005,66510.0,66496.0,0.52457802]
[1729720936032,0.0966,66505.0,66496.0,0.52157059]
[1729720936874,0.0966,66505.0,66496.0,0.52909392]
[1729720937291,0.0966,66505.0,66496.0,0.53109392]
[1729720937535,0.0966,66505.0,66496.0,0.53493498]
[1729720938957,0.0966,66505.0,66496.0,0.53493411]
[1729720939168,0.0775,66506.0,66496.0,0.53493411]
[1729720939375,0.0966,66509.0,66496.0,0.53493411]
[1729720941004,0.0966,66509.0,66496.0,0.62883411]
[1729720941804,0.0966,66509.0,66496.0,0.57798415]
[1729720943533,0.079204,66511.0,66496.0,0.57798415]
[1729720944262,0.001704,66511.0,66496.0,0.57798415]
[1729720944495,0.001704,66511.0,66496.0,0.74942217]
[1729720944742,0.001704,66511.0,66496.0,0.70441756]
[1729720945482,0.001704,66511.0,66496.0,0.74936204]
[1729720946199,0.001704,66511.0,66496.0,0.69971553]
[1729720946417,0.001704,66511.0,66496.0,0.74935165]
[1729720946900,0.0932,66508.0,66496.0,0.70051824]
[1729720947116,0.0779,66507.0,66496.0,0.76656252]
[1729720952831,0.0932,66508.0,66496.0,0.76656252]
[1729720953251,0.0932,66508.0,66496.0,0.76856252]
[1729720955269,0.079604,66511.0,66503.0,0.155369]
[1729720955270,0.001704,66511.0,66503.0,0.155369]
[1729720955492,0.001704,66511.0,66503.0,0.64008504]
[1729720955696,0.001704,66511.0,66503.0,0.85903836]
[1729720956771,0.001704,66511.0,66503.0,0.86103836]
[1729720957137,0.001704,66511.0,66510.0,0.255353]
[1729720957337,0.001704,66511.0,66510.0,0.53206615]
[1729720957554,0.001704,66511.0,66510.0,0.52905958]
[1729720958168,0.001704,66511.0,66510.0,0.41807962]
[1729720959632,0.001704,66511.0,66510.0,0.42196117]
[1729720965075,0.001704,66511.0,66510.0,0.64791753]
[1729720965312,0.001704,66511.0,66510.0,0.59876117]
[1729720966070,0.001704,66511.0,66510.0,0.60076117]
[1729720966890,0.099704,66524.0,66510.0,0.60076117]
[1729720967064,0.09820096,66524.0,66523.0,0.26630296]
[1729720967263,0.09820096,66524.0,66523.0,0.42902958]
[1729720967943,0.09820096,66524.0,66523.0,0.44028464]
[1729720968361,0.09820096,66524.0,66523.0,0.42902958]
[1729720969644,0.09820096,66524.0,66523.0,0.41680677]
[1729720970773,0.09820096,66524.0,66523.0,0.42902838]
[1729720971590,0.09820096,66524.0,66523.0,0.43283088]
[1729720972364,0.09820096,66524.0,66523.0,0.32185092]
[1729720973786,0.00020096,66524.0,66523.0,0.54310666]
[1729720973986,0.00020096,66524.0,66523.0,0.4171503]
[1729720974193,0.00020096,66524.0,66523.0,0.40962931]
[1729720974942,0.00020096,66524.0,66523.0,0.52060927]
[1729720975373,0.00020096,66524.0,66523.0,0.40962931]
[1729720978620,0.00020096,66524.0,66523.0,0.41432989]
[1729720980556,0.35392196,66524.0,66523.0,0.00470058]
[1729720980763,0.61766043,66524.0,66523.0,0.00470058]
[1729720980961,0.178351,66511.0,66510.0,0.001646]
[1729720981170,0.257851,66511.0,66510.0,0.001646]
[1729720981381,0.178355,66509.0,66508.0,0.22595636]
[1729720981616,0.028,66509.0,66508.0,0.22595636]
[1729720981839,0.028,66509.0,66508.0,0.37631336]
[1729720982068,0.005,66509.0,66508.0,0.37631336]
[1729720982323,0.005,66511.0,66510.0,0.150353]
[1729720982556,0.005,66511.0,66510.0,0.26133296]
[1729720983040,0.1075,66515.0,66514.0,0.150344]
[1729720989989,0.005,66515.0,66514.0,0.456028]
[1729720990404,0.00020096,66524.0,66518.0,0.155335]
[1729720990405,0.005,66519.0,66518.0,0.155335]
[1729720990652,0.005,66519.0,66518.0,0.26631496]
[1729720991056,0.00020096,66524.0,66520.0,0.15033]
[1729720991057,0.005,66521.0,66520.0,0.15033]
[1729720995230,0.005,66521.0,66520.0,0.15503112]
[1729720997474,0.356828,66521.0,66520.0,0.00470112]
[1729720997671,0.023,66518.0,66513.0,0.22595636]
[1729720997871,0.023,66518.0,66516.0,0.150337]
[1729720998169,0.023,66518.0,66517.0,0.15503884]
[1729720998384,0.023,66518.0,66517.0,0.00470184]
[1729720998839,0.023,66518.0,66517.0,0.15503884]
[1729721005651,0.028,66519.0,66518.0,0.150335]
[1729721005894,0.028,66519.0,66518.0,0.15503684]
[1729721007838,0.023,66519.0,66518.0,0.15503684]
[1729721009592,0.023,66519.0,66518.0,0.150335]
[1729721009834,0.023,66519.0,66518.0,0.15503657]
[1729721011492,0.000824,66521.0,66520.0,0.005]
[1729721011723,0.000824,66521.0,66520.0,0.27101153]
[1729721011933,0.082024,66521.0,66520.0,0.15503157]
[1729721013024,0.105024,66521.0,66520.0,0.15503157]
[1729721013604,0.023824,66521.0,66520.0,0.15503157]
[1729721013808,0.000824,66521.0,66520.0,0.32874701]
[1729721015363,0.000824,66521.0,66520.0,0.33374701]
[1729721016215,0.000824,66521.0,66520.0,0.15503157]
[1729721016839,0.000824,66521.0,66520.0,0.15033]
[1729721017055,0.000824,66521.0,66520.0,0.15503118]
[1729721017684,0.000824,66521.0,66520.0,0.32874662]
[1729721017884,0.000824,66521.0,66520.0,0.92476587]
[1729721018092,0.000824,66521.0,66520.0,0.75105043]
[1729721020473,0.000824,66521.0,66520.0,0.75500887]
[1729721020696,0.000824,66521.0,66520.0,0.75500831]
[1729721020910,0.000824,66521.0,66520.0,0.75030769]
[1729721021150,0.000824,66521.0,66520.0,0.7550083]
[1729721022825,0.000824,66521.0,66520.0,0.7610193]
[1729721024391,0.000824,66521.0,66520.0,0.76101929]
[1729721024815,0.00020096,66524.0,66523.0,0.345423]
[1729721025023,0.00020096,66524.0,66523.0,0.69167919]
[1729721025233,0.00020096,66524.0,66523.0,0.71417004]
[1729721025440,0.00020096,66524.0,66523.0,0.63172337]
[1729721025639,0.00020096,66524.0,66523.0,0.69918359]
[1729721026317,0.00020096,66524.0,66523.0,0.69918237]
[1729721026527,0.00020096,66524.0,66523.0,0.69166253]
[1729721026938,0.00020096,66524.0,66523.0,0.57732741]
[1729721027138,0.00020096,66524.0,66523.0,0.62229146]
[1729721027348,0.00020096,66524.0,66523.0,0.57732741]
[1729721027973,0.00020096,66524.0,66523.0,0.57262681]
[1729721028186,0.00020096,66524.0,66523.0,0.622291]
[1729721028391,0.00020096,66524.0,66523.0,0.57732695]
[1729721029024,0.00020096,66524.0,66523.0,0.622291]
[1729721029233,0.00020096,66524.0,66523.0,0.57732695]
[1729721030283,0.00020096,66524.0,66523.0,0.622291]
[1729721030486,0.00020096,66524.0,66523.0,0.58484702]
[1729721031715,0.00020096,66524.0,66523.0,0.49474702]
[1729721031924,0.00020096,66524.0,66523.0,0.49846194]
[1729721032132,0.00020096,66524.0,66523.0,0.48722725]
[1729721032339,0.00020096,66524.0,66523.0,0.49474796]
[1729721035596,0.00020096,66524.0,66523.0,0.48252681]
[1729721035801,0.00020096,66524.0,66523.0,0.49474731]
[1729721037206,0.00020096,66524.0,66523.0,0.49474728]
[1729721037423,0.00020096,66524.0,66523.0,0.26254347]
[1729721037845,0.00020096,66524.0,66523.0,0.43625891]
[1729721038673,0.00020096,66524.0,66523.0,0.42403844]
[1729721038850,0.00020096,66524.0,66523.0,0.43626006]
[1729721039785,2.003e-05,66524.0,66523.0,0.43626006]
[1729721040048,2.003e-05,66524.0,66523.0,0.17476648]
[1729721040814,2.003e-05,66524.0,66523.0,0.16724533]
[1729721041012,2.003e-05,66524.0,66523.0,0.16254462]
[1729721041610,2.003e-05,66524.0,66523.0,0.17476736]
[1729721045075,2.003e-05,66524.0,66523.0,0.40072372]
[1729721045348,2.003e-05,66524.0,66523.0,0.3484828]
[1729721045564,2.003e-05,66524.0,66523.0,0.34096111]
[1729721046005,2.003e-05,66524.0,66523.0,0.34096079]
[1729721046233,2.003e-05,66524.0,66523.0,0.34096082]
[1729721046706,2.003e-05,66524.0,66523.0,0.34848204]
[1729721048544,2.003e-05,66524.0,66523.0,0.82804221]
[1729721048779,2.003e-05,66524.0,66523.0,0.60208585]
[1729721049261,2.003e-05,66524.0,66523.0,0.83197754]
[1729721049483,2.003e-05,66524.0,66523.0,0.76803013]
[1729721049716,2.003e-05,66524.0,66523.0,0.76050891]
[1729721049963,2.003e-05,66524.0,66523.0,0.58679347]
[1729721050181,2.003e-05,66524.0,66523.0,0.59076416]
[1729721050644,2.003e-05,66524.0,66523.0,0.34216035]
[1729721052303,2.003e-05,66524.0,66523.0,0.32993873]
[1729721054843,2.003e-05,66524.0,66523.0,0.24693873]
[1729721056475,2.003e-05,66524.0,66523.0,0.24858473]
[1729721057966,2.003e-05,66524.0,66523.0,0.24461404]
[1729721059328,2.003e-05,66524.0,66523.0,0.61385806]
[1729721059542,2.003e-05,66524.0,66523.0,0.57883329]
[1729721059767,2.003e-05,66524.0,66523.0,0.64637045]
[1729721060004,2.003e-05,66524.0,66523.0,0.6501616]
[1729721060714,2.003e-05,66524.0,66523.0,0.8554994]
[1729721060959,2.003e-05,66524.0,66523.0,0.62954304]
[1729721064171,2.003e-05,66524.0,66523.0,0.62954233]
[1729721065127,2.003e-05,66524.0,66523.0,0.74213961]
[1729721065358,2.003e-05,66524.0,66523.0,0.62954233]
[1729721065829,2.003e-05,66524.0,66523.0,0.71962157]
[1729721066504,2.003e-05,66524.0,66523.0,0.70962157]
[1729721067732,2.003e-05,66524.0,66523.0,0.70962179]
[1729721067975,2.003e-05,66524.0,66523.0,0.70492152]
[1729721068206,2.003e-05,66524.0,66523.0,0.70962458]
[1729721069058,0.023,66533.0,66532.0,0.150303]
[1729721069258,0.023,66533.0,66532.0,0.32871871]
[1729721071579,0.1978,66533.0,66532.0,0.15500327]
[1729721074068,0.1978,66533.0,66532.0,0.15888849]
[1729721075077,0.1978,66533.0,66532.0,0.33260393]
[1729721075309,0.023,66533.0,66532.0,0.33260393]
[1729721078927,0.023,66533.0,66532.0,0.34012427]
[1729721079353,0.023,66533.0,66532.0,0.34012421]
[1729721080635,0.023823,66533.0,66532.0,0.34012421]
[1729721082419,0.023823,66533.0,66532.0,0.277471]
[1729721082669,0.023823,66533.0,66532.0,0.27277079]
[1729721082895,0.023823,66533.0,66532.0,0.26525045]
[1729721083118,0.023823,66533.0,66532.0,0.27747077]
[1729721090282,0.023823,66533.0,66532.0,0.26995057]
[1729721090455,0.023823,66533.0,66532.0,0.27747077]
[1729721092342,0.023823,66533.0,66532.0,0.28874387]
[1729721096169,0.023823,66533.0,66532.0,0.17768164]
[1729721097126,0.50812781,66533.0,66532.0,0.02349342]
[1729721097360,0.58571836,66533.0,66532.0,0.02349342]
[1729721097610,0.75196036,66533.0,66532.0,0.00470012]
[1729721097837,0.84431785,66533.0,66532.0,0.00470012]
[1729721098059,0.7767273,66533.0,66532.0,0.00470012]
[1729721098289,0.005,66525.0,66524.0,0.001646]
[1729721098518,0.033,66525.0,66524.0,0.02513415]
[1729721099243,0.33382281,66525.0,66524.0,0.02513415]
[1729721099469,0.42802281,66525.0,66524.0,0.01386987]
[1729721099919,0.53908504,66525.0,66524.0,0.01386987]
[1729721100186,0.53908504,66525.0,66524.0,0.00634749]
[1729721100428,0.42802281,66525.0,66524.0,0.00634749]
[1729721100678,0.42802281,66525.0,66524.0,0.001646]
[1729721100679,0.758581,66525.0,66524.0,0.001646]
[1729721100915,0.69105712,66525.0,66524.0,0.001646]
[1729721101159,0.51732281,66525.0,66524.0,0.001646]
[1729721103179,0.50732281,66525.0,66524.0,0.001646]
[1729721107232,0.54129712,66525.0,66524.0,0.001646]
[1729721108329,0.51732281,66525.0,66524.0,0.001646]
[1729721110061,0.51932281,66525.0,66524.0,0.001646]
[1729721110729,0.51732281,66525.0,66524.0,0.001646]
[1729721110938,0.51932281,66525.0,66524.0,0.001646]
[1729721111679,0.51732281,66525.0,66524.0,0.001646]
[1729721111896,0.70886075,66525.0,66524.0,0.001646]
[1729721112102,0.75370783,66525.0,66524.0,0.001646]
[1729721112319,0.75369255,66525.0,66524.0,0.001646]
[1729721112963,0.66415461,66525.0,66524.0,0.001646]
[1729721113374,0.61932281,66525.0,66524.0,0.001646]
[1729721116355,0.62014681,66525.0,66524.0,0.001646]
[1729721120147,0.61814681,66525.0,66524.0,0.001646]
[1729721120351,0.84257095,66525.0,66524.0,0.001646]
[1729721120560,0.84057095,66525.0,66524.0,0.001646]
[1729721121194,0.99107476,66525.0,66524.0,0.001646]
[1729721121400,0.99307476,66525.0,66524.0,0.001646]
[1729721124464,0.99107476,66525.0,66524.0,0.001646]
[1729721124729,0.99307476,66525.0,66524.0,0.001646]
[1729721126815,0.295321,66524.0,66523.0,0.001646]
[1729721127044,0.76342862,66524.0,66523.0,0.001646]
[1729721131088,0.17233,66520.0,66519.0,0.00117981]
[1729721131472,0.17233,66520.0,66510.0,0.001648]
[1729721131473,0.77308721,66511.0,66510.0,0.001648]
[1729721131711,0.96288276,66511.0,66510.0,0.001648]
[1729721132419,1.03000802,66511.0,66510.0,0.001648]
[1729721132648,0.74045862,66511.0,66510.0,0.001648]
[1729721132886,0.96288276,66511.0,66510.0,0.001648]
[1729721133346,0.98588276,66511.0,66510.0,0.001648]
[1729721133576,0.65769388,66511.0,66510.0,0.001648]
[1729721133917,0.83537895,66511.0,66510.0,0.001648]
[1729721134400,0.78683852,66511.0,66510.0,0.001648]
[1729721138371,0.83161986,66511.0,66510.0,0.001648]
[1729721138620,0.61295481,66511.0,66510.0,0.001648]
[1729721138856,0.98212359,66511.0,66510.0,0.001648]
[1729721139099,0.93734233,66511.0,66510.0,0.001648]
[1729721139350,1.0044847,66511.0,66510.0,0.001648]
[1729721140320,0.93734233,66511.0,66510.0,0.001648]
[1729721141044,1.10274603,66511.0,66510.0,0.001648]
[1729721142448,1.21476139,66511.0,66510.0,0.001648]
[1729721143374,1.10274603,66511.0,66510.0,0.001648]
[1729721144067,1.10074603,66511.0,66510.0,0.001648]
[1729721144312,1.10274603,66511.0,66510.0,0.001648]
[1729721146903,1.21492099,66511.0,66510.0,0.001648]
[1729721147581,1.10274603,66511.0,66510.0,0.001648]
[1729721147804,1.21492645,66511.0,66510.0,0.001648]
[1729721148023,1.10274603,66511.0,66510.0,0.001648]
[1729721150539,1.10299244,66511.0,66510.0,0.001648]
[1729721154520,1.15163309,66511.0,66510.0,0.001648]
[1729721154747,0.61150492,66511.0,66510.0,0.001648]
[1729721154986,0.7227671,66511.0,66510.0,0.001648]
[1729721155453,0.83402928,66511.0,66510.0,0.001648]
[1729721156625,1.06075286,66511.0,66510.0,0.001648]
[1729721156868,0.92612928,66511.0,66510.0,0.001648]
[1729721157108,1.07663309,66511.0,66510.0,0.001648]
[1729721157331,1.21125667,66511.0,66510.0,0.001648]
[1729721158928,1.25707076,66511.0,66510.0,0.001648]
[1729721159661,1.25707076,66511.0,66493.0,0.22595636]
[1729721159662,0.295373,66501.0,66493.0,0.30565636]
[1729721159886,0.8124736,66501.0,66493.0,0.22595636]
[1729721160107,0.64682349,66501.0,66493.0,0.22595636]
[1729721160345,0.170389,66494.0,66493.0,0.22595636]
[1729721160561,0.50007606,66494.0,66493.0,0.22595636]
[1729721161031,0.193391,66493.0,66492.0,0.0943]
[1729721161259,0.34389481,66493.0,66492.0,0.0943]
[1729721161516,0.34589481,66493.0,66492.0,0.0943]
[1729721161752,0.34815094,66493.0,66492.0,0.0943]
[1729721162038,0.34615094,66493.0,66492.0,0.0943]
[1729721163937,0.34615094,66493.0,66492.0,0.174]
[1729721168251,0.33615094,66493.0,66492.0,0.17870436]
[1729721172190,0.33615094,66493.0,66492.0,0.18623084]
[1729721172631,0.01225613,66493.0,66492.0,0.18623084]
[1729721173522,0.16264713,66493.0,66492.0,0.18623084]
[1729721173763,0.18564713,66493.0,66492.0,0.18623084]
[1729721175499,0.18564713,66493.0,66492.0,0.18787884]
[1729721178089,0.18564713,66493.0,66492.0,0.1878782]
[1729721178785,0.23062629,66493.0,66492.0,0.18035192]
[1729721179020,0.18564713,66493.0,66492.0,0.18035192]
[1729721179494,0.23072569,66493.0,66492.0,0.18035192]
[1729721180217,0.18564713,66493.0,66492.0,0.18035192]
[1729721180438,0.2307265,66493.0,66492.0,0.18035192]
[1729721181158,0.18564713,66493.0,66492.0,0.18035192]
[1729721181398,0.33615094,66493.0,66492.0,0.18035192]
[1729721181615,0.33615094,66493.0,66492.0,0.175648]
[1729721182079,0.33615094,66493.0,66492.0,0.18035222]
[1729721183389,0.52711125,66493.0,66492.0,0.08605222]
[1729721183503,0.71600775,66493.0,66492.0,0.081348]
[1729721183725,0.60251618,66493.0,66492.0,0.081348]
[1729721183933,0.51255786,66493.0,66492.0,0.081348]
[1729721186308,0.51255786,66493.0,66492.0,0.001648]
[1729721186771,0.62500576,66493.0,66492.0,0.001648]
[1729721187667,0.61255786,66493.0,66492.0,0.001648]
[1729721188345,0.60030173,66493.0,66492.0,0.001648]
[1729721188570,0.58230173,66493.0,66492.0,0.181648]
[1729721189021,0.47850038,66493.0,66492.0,0.181648]
[1729721189245,0.41089481,66493.0,66492.0,0.181648]
[1729721189486,0.47850222,66493.0,66492.0,0.181648]
[1729721189911,0.43615076,66493.0,66492.0,0.18635233]
[1729721191897,0.50375817,66493.0,66492.0,0.18635233]
[1729721192864,0.50374887,66493.0,66492.0,0.18635233]
[1729721193078,0.43615076,66493.0,66492.0,0.18635233]
[1729721193290,0.50374887,66493.0,66492.0,0.18635233]
[1729721194395,0.43615076,66493.0,66492.0,0.18635233]
[1729721195096,0.43615076,66493.0,66492.0,0.181648]
[1729721195916,0.6024956,66493.0,66492.0,0.181648]
[1729721196339,0.69262641,66493.0,66492.0,0.181648]
[1729721197190,0.6024956,66493.0,66492.0,0.181648]
[1729721197615,0.6024956,66493.0,66492.0,0.151648]
[1729721197616,0.50374346,66493.0,66492.0,0.151648]
[1729721201046,0.50374346,66493.0,66492.0,0.153296]
[1729721201877,0.50374346,66493.0,66492.0,0.099248]
[1729721202599,0.50373143,66493.0,66492.0,0.099248]
[1729721203393,0.160391,66493.0,66492.0,0.18635241]
[1729721203983,0.160391,66493.0,66492.0,0.18635197]
[1729721204591,0.183391,66493.0,66492.0,0.18635197]
[1729721205504,0.150388,66495.0,66492.0,0.18635197]
[1729721205737,0.005,66496.0,66495.0,0.330387]
[1729721205969,0.005,66496.0,66495.0,0.30349245]
[1729721206188,0.005,66496.0,66495.0,0.19223027]
[1729721206869,0.028,66496.0,66495.0,0.19223027]
[1729721207318,0.028,66496.0,66495.0,0.34261727]
[1729721207804,0.028,66496.0,66495.0,0.19223027]
[1729721208203,0.028,66496.0,66495.0,0.34261727]
[1729721209543,0.023,66496.0,66495.0,0.34261727]
[1729721209764,0.028,66496.0,66495.0,0.45387945]
[1729721210001,0.023,66497.0,66496.0,0.150384]
[1729721210229,0.023,66497.0,66496.0,0.34261427]
[1729721211648,0.005,66505.0,66504.0,0.150364]
[1729721211869,0.005,66505.0,66504.0,0.44162618]
[1729721212092,0.005,66505.0,66504.0,0.45385375]
[1729721212304,0.005,66505.0,66504.0,0.34259157]
[1729721212550,0.005,66505.0,66504.0,0.45385375]
[1729721212760,0.000824,66510.0,66507.0,0.15036]
[1729721212761,0.005,66508.0,66507.0,0.15036]
[1729721212991,0.005,66508.0,66507.0,0.37224975]
[1729721213200,0.005,66508.0,66507.0,0.36002218]
[1729721213412,0.005,66508.0,66507.0,0.37224822]
[1729721214297,0.028,66508.0,66507.0,0.37224822]
[1729721215172,0.028,66508.0,66507.0,0.36002218]
[1729721215484,0.028,66508.0,66507.0,0.37224847]
[1729721217285,0.028,66508.0,66507.0,0.3647246]
[1729721220936,0.028,66508.0,66507.0,0.36002218]
[1729721221161,0.028,66508.0,66507.0,0.36472456]
[1729721221387,0.000824,66510.0,66507.0,0.36472456]
[1729721221388,0.023824,66510.0,66509.0,0.327955]
[1729721221611,0.000824,66510.0,66509.0,0.327955]
[1729721221837,0.000824,66510.0,66509.0,0.1776]
[1729721222046,0.000824,66510.0,66509.0,0.332657]
[1729721222729,0.000824,66510.0,66509.0,0.327955]
[1729721222960,0.000824,66510.0,66509.0,0.33265723]
[1729721223860,0.000824,66510.0,66509.0,0.44391941]
[1729721225155,0.000824,66510.0,66509.0,0.33265723]
[1729721225368,0.000824,66510.0,66509.0,0.33265737]
[1729721225840,0.000824,66510.0,66509.0,0.18230237]
[1729721226053,0.174177,66510.0,66509.0,0.18230237]
[1729721226479,0.000824,66510.0,66509.0,0.18230237]
[1729721226915,0.174177,66510.0,66509.0,0.10310237]
[1729721227122,0.174177,66510.0,66509.0,0.0984]
[1729721227333,0.023824,66510.0,66509.0,0.10310237]
[1729721227754,0.023824,66510.0,66509.0,0.25345737]
[1729721228167,0.023824,66510.0,66509.0,0.36471955]
[1729721229214,0.023824,66510.0,66509.0,0.44011955]
[1729721229442,0.000824,66510.0,66509.0,0.44011955]
[1729721229625,0.000824,66510.0,66509.0,0.45134796]
[1729721229831,0.000824,66510.0,66509.0,0.34008578]
[1729721230251,0.000824,66510.0,66509.0,0.32885737]
[1729721232398,0.000824,66510.0,66504.0,0.395831]
[1729721232613,0.023824,66510.0,66509.0,0.15505731]
[1729721232821,0.023824,66510.0,66509.0,0.150355]
[1729721233029,0.023824,66510.0,66509.0,0.15505733]
[1729721233458,0.000824,66510.0,66509.0,0.15505733]
[1729721233667,0.000824,66510.0,66509.0,0.16258107]